Cogmind - Beta 10.2 @@@ ROGUE MODE // 2022.02.06 @ 23:43:59 Player: Zach Result: Destroyed by G-34 Mercenary with Small Laser Performance ------------- Evolutions (1) 500 Regions Visited (2) 400 Robots Destroyed (35) 175 Value Destroyed (945) 945 Prototype IDs (3) 60 Alien Tech Used (0) 0 Bonus (81) 81 TOTAL SCORE: 2161 Bonus ------- High Alert Combat Kills 81 Cogmind --------- Core Integrity 0/400 Matter 199/300 Energy 100/100 System Corruption 4% Temperature Cool (6) Movement Walking (120) Location -9/Materials Parts ------- > --- POWER (2) -------- (None) > --- PROPULSION (2) --- Improved Aluminum Leg > --- UTILITY (2) ------ Improved ECM Suite > --- WEAPON (3) ------- Flail > --- INVENTORY (4) ---- (None) Peak State ------------ > --- POWER ------------ Ion Engine Light Ion Engine > --- PROPULSION ------- Aluminum Leg Aluminum Leg > --- UTILITY ---------- Improved ECM Suite Hardlight Generator > --- WEAPON ----------- EM Pulse Gun EM Pulse Gun Grenade Launcher > --- INVENTORY -------- Aluminum Leg Light Assault Rifle [Rating: 13] Favorites ----------- Power Ion Engine Engine Ion Engine Propulsion Aluminum Leg Leg Aluminum Leg Utility Small Storage Unit Device Improved ECM Suite Storage Small Storage Unit Processor Melee Analysis Suite Protection Weapon Shielding Weapon EM Pulse Gun Energy Gun EM Pulse Gun Energy Cannon Beam Cannon Ballistic Gun Light Assault Rifle Launcher Grenade Launcher Impact Weapon Flail Build | -11 -10 -9 ------- Run | Scr Mat Mat Slots Evolved 2 | . . 2 Power 1 | . . 1 Propulsion . | . . . Utility . | . . . Weapon 1 | . . 1 Parts Attached 27 | 6 7 14 Power 2 | 1 . 1 Engine 2 | 1 . 1 Core . | . . . Reactor . | . . . Propulsion 6 | 2 1 3 Treads . | . . . Leg 6 | 2 1 3 Wheel . | . . . Hover . | . . . Flight . | . . . Utility 5 | 1 1 3 Device 2 | . . 2 Storage 1 | 1 . . Processor 1 | . . 1 Hackware . | . . . Protection 1 | . 1 . Artifact . | . . . Weapon 14 | 2 5 7 Energy Gun 5 | 1 4 . Energy Cannon 1 | . . 1 Ballistic Gun 2 | 1 . 1 Ballistic Cannon . | . . . Launcher 5 | . 1 4 Special Weapon . | . . . Impact Weapon 1 | . . 1 Slashing Weapon . | . . . Piercing Weapon . | . . . Special Melee Weapon . | . . . Unidentified Prototypes . | . . . Parts Lost 13 | . 1 12 Power 2 | . . 2 Propulsion 3 | . . 3 Utility 2 | . . 2 Weapon 6 | . 1 5 Highest Loss Streak 6 | . 1 6 Average Slot Usage (%) 80 | . 87 75 Engine 12 | . 14 11 Leg 22 | . 26 18 Device 8 | . . 15 Storage 6 | . 14 . Protection 3 | . 7 . Energy Gun 12 | . 12 12 Energy Cannon 2 | . . 3 Ballistic Gun 1 | . 1 . Launcher 9 | . 9 9 Impact Weapon 1 | . . 1 Naked Turns . | . . . Heaviest Build 22 | 11 15 22 Greatest Support 20 | 20 20 20 Greatest Overweight (x) 2 | 1 1 2 Average Overweight (x) . | . . . Largest Inventory Capacity 6 | 6 6 6 Average Capacity 5 | 5 6 4 Most Carried 6 | 4 6 6 Average Carried 3 | 1 5 2 Final Capacity 6 | 6 6 4 Final Carried 6 | 4 6 . Class Distribution -------------------- 73% | Mutant 17% | Tank 9% | Gunner Dominant Class ---------------- Mutant | -10/Materials Mutant | -9/Materials Resources | -11 -10 -9 ----------- Run | Scr Mat Mat Matter Collected 665 | 259 175 231 Remotely . | . . . Salvage Created 925 | 114 235 576 Parts 62 | 5 17 40 Haulers Intercepted 1 | . . 1 Recyclers Shooed 2 | . . 2 Parts Field Recycled . | . . . Retrieved Matter . | . . . Parts Self-Destructed . | . . . Prevented . | . . . Kills | -11 -10 -9 ------- Run | Scr Mat Mat Combat Hostiles Destroyed 24 | . 9 15 Melee 1 | . . 1 Guns 2 | . 1 1 Cannons 2 | . . 2 AOE 19 | . 8 11 Classes Destroyed 11 | 2 4 5 Worker 1 | . . 1 Builder 3 | . . 3 Tunneler 1 | 1 . . Hauler 1 | . . 1 Recycler 2 | 1 . 1 Operator 2 | . 1 1 Watcher 1 | . 1 . Swarmer 3 | . 3 . Grunt 17 | . 6 11 Duelist 1 | . . 1 Sentry 3 | . . 3 Best Kill Streak 10 | 1 4 10 Combat Bots Only 5 | . 3 5 Max Kills in Single Turn 3 | 1 2 3 Gunslinging . | . . . Exploded 2 | . 2 2 Melee 1 | . . 1 Uniques/NPCs Destroyed . | . . . Combat | -11 -10 -9 -------- Run | Scr Mat Mat Damage Taken 1560 | 4 307 1249 Core 446 | 2 42 402 Absorbed by Shields 72 | . . 72 Core Remaining (%) 90 | 99 82 . Volleys Fired 66 | 8 14 44 Largest 3 | 2 2 3 Hottest 120 | 60 80 120 Shots Fired 99 | 16 23 60 Gun 48 | 16 12 20 Cannon 16 | . . 16 Launcher 35 | . 11 24 Special . | . . . Kinetic 20 | 8 . 12 Thermal 27 | 8 3 16 Explosive 35 | . 11 24 Electromagnetic 17 | . 9 8 Robot Hit Streak 9 | 1 9 9 Robot Miss Streak 4 | 4 2 3 Penetration Max . | . . . Secondary Targets . | . . . Shots Hit Robots 49 | 4 13 32 Core Hits 62 | 5 16 41 Critical Hits . | . . . Critical Kills . | . . . Critical Parts Destroyed . | . . . Melee Attacks 10 | . . 10 Impact 10 | . . 10 Slashing . | . . . Piercing . | . . . Sneak Attacks . | . . . Combat Hostiles . | . . . Follow-up Attacks . | . . . Damage Inflicted 2242 | 72 613 1557 Guns 252 | 64 100 88 Cannons 193 | . . 193 Explosions 1616 | . 513 1103 Melee 173 | . . 173 Ramming 8 | 8 . . Kinetic 81 | 20 . 61 Thermal 416 | 44 37 335 Explosive 1474 | . 513 961 Electromagnetic 90 | . 63 27 Impact 173 | . . 173 Slashing . | . . . Piercing . | . . . Highest Corruption 4 | . 1 4 Average Corruption 2 | . 1 4 Corruption Purged . | . . . Effects 1 | . . 1 Parts Rejected 1 | . . 1 Overload Shots . | . . . Overflow Damage 59 | . 9 50 Projectiles . | . . . Explosions 59 | . 9 50 Melee . | . . . Knockbacks 1 | . . 1 Impact 1 | . . 1 Kinetic . | . . . Secondary . | . . . Self-Inflicted Damage 194 | 2 136 56 Shots 7 | . 5 2 Rammed 1 | 1 . . Targets Rammed 2 | 2 . . Kicked 1 | 1 . . Crushed . | . . . Highest Temperature 250 | 40 66 250 Average Temperature 63 | 21 23 90 Received Heat Transfer 571 | . 36 535 Siege Activations . | . . . Robots Corrupted . | . . . Combat Hostiles . | . . . Parts Fried . | . . . Impact Corruptions . | . . . Robots Melted . | . . . Combat Hostiles . | . . . Parts Melted 1 | . . 1 Heat Transferred 694 | 100 87 507 Parts Sabotaged . | . . . Parts Stolen . | . . . Parts Stripped . | . . . Power Chain Reactions . | . . . Missiles Intercepted . | . . . Alert | -11 -10 -9 ------- Run | Scr Mat Mat Peak Influence 591 | 10 291 591 Initial 122 | . 6 122 Average 230 | 3 179 343 Maximum Alert Level 2 | . 1 2 Low Security (%) 52 | 100 54 35 Level 1 26 | . 45 18 Level 2 21 | . . 45 Level 3 . | . . . Level 4 . | . . . Level 5 . | . . . High Security . | . . . Max Security . | . . . Squads Dispatched 8 | . 4 4 Investigation 6 | . 2 4 Extermination . | . . . Reinforcement 2 | . 2 . Assault . | . . . Garrison . | . . . Intercept . | . . . Construction Impeded . | . . . Haulers Reinforced . | . . . Stealth | -11 -10 -9 --------- Run | Scr Mat Mat Distress Signals . | . . . Communications Jammed . | . . . Distress Signals . | . . . Times Spotted 32 | . 13 19 Peak Tracking Total 7 | . 3 7 Tactical Retreats . | . . . Traps | -11 -10 -9 ------- Run | Scr Mat Mat Traps Triggered 1 | . 1 . Indirectly . | . . . Trap Hack Attempts . | . . . Triggered . | . . . Disarmed . | . . . Reprogrammed . | . . . Reused . | . . . Traps Extracted . | . . . Installed . | . . . Triggered . | . . . Machines | -11 -10 -9 ---------- Run | Scr Mat Mat Machines Disabled 7 | . 2 5 Max in Single Turn 3 | . 2 3 Machines Sabotaged . | . . . Garrisons Compromised . | . . . Overloaded Fab Kills . | . . . Fab Network Shutdowns . | . . . Hacking | -11 -10 -9 --------- Run | Scr Mat Mat Machines Accessed 9 | . 3 6 Terminals 5 | . 1 4 Fabricators . | . . . Repair Stations 1 | . 1 . Recycling Units 2 | . 1 1 Scanalyzers 1 | . . 1 Garrison Access . | . . . Total Hacks 39 | . 15 24 Successful 25 | . 9 16 Failed 14 | . 6 8 Catastrophic . | . . . Database Lockouts . | . . . Manual . | . . . Terminals 19 | . 4 15 Fabricators . | . . . Repair Stations 5 | . 5 . Recycling Units 10 | . 6 4 Scanalyzers 5 | . . 5 Garrison Access . | . . . Terminal Hacks 12 | . 2 10 Record 5 | . . 5 Prototype ID Bank 1 | . 1 . Branch Access Points 1 | . . 1 Locate Traps 1 | . 1 . Maintenance Status 1 | . . 1 Transport Status 1 | . . 1 Investigation Status 2 | . . 2 Fabricator Hacks . | . . . Repair Station Hacks 4 | . 4 . Scan Component 2 | . 2 . Repair 2 | . 2 . Recycling Unit Hacks 4 | . 3 1 Recycle Component 1 | . . 1 Process 1 | . 1 . Retrieve Matter 2 | . 2 . Scanalyzer 5 | . . 5 Insert Component 3 | . . 3 Analyze 2 | . . 2 Garrison Access Hacks . | . . . Unauthorized Hacks . | . . . Terminals . | . . . Fabricators . | . . . Repair Stations . | . . . Recycling Units . | . . . Scanalyzers . | . . . Garrison Access . | . . . Data Cores Recovered 1 | . . 1 Used . | . . . Hacking Detections 9 | . 3 6 Full Trace Events 8 | . 2 6 Feedback Events . | . . . Feedback Blocked . | . . . Robot Schematics Acquired . | . . . Robots Built . | . . . Matter . | . . . Time . | . . . Total Robot Build Rating . | . . . Part Schematics Acquired 2 | . . 2 Parts Built . | . . . Matter . | . . . Time . | . . . Total Part Build Rating . | . . . Parts Repaired 2 | . 2 . Time 52 | . 52 . Parts Recycled 1 | . . 1 Recycled Matter 42 | . 42 . Retrieved Matter . | . . . Retrieved Components . | . . . Parts Scanalyzed 2 | . . 2 Part Schematics Acquired 2 | . . 2 Parts Damaged 1 | . . 1 Bothacking | -11 -10 -9 ------------ Run | Scr Mat Mat Used RIF Installer . | . . . Robots Hacked . | . . . Non-combat . | . . . Combat . | . . . Robot Hacks Applied . | . . . Relay Couplers Released . | . . . Robots Rewired . | . . . Allies Hacked . | . . . Hacks Repelled . | . . . Allies | -11 -10 -9 -------- Run | Scr Mat Mat Total Allies . | . . . Largest Group . | . . . Highest-Rated Group . | . . . Highest-Rated Ally . | . . . Total Orders . | . . . Ally Attacks . | . . . Total Damage . | . . . Kills . | . . . Allies Corrupted . | . . . Allies Melted . | . . . Intel | -11 -10 -9 ------- Run | Scr Mat Mat Robot Analysis Total . | . . . Derelict Logs Recovered . | . . . Drone Launches . | . . . Drone Recoveries . | . . . Exploration | -11 -10 -9 ------------- Run | Scr Mat Mat Turns Passed 865 | 124 337 404 Spaces Moved 473 | 73 236 164 Core 10 | 8 . 2 Treads . | . . . Legs 463 | 65 236 162 Wheels . | . . . Hover . | . . . Flight . | . . . Fastest Speed 50 | 50 120 100 Average Speed 129 | 118 121 145 Slowest Speed 180 | 150 150 180 Overloaded Moves . | . . . Propulsion Burnouts . | . . . Robots Hopped . | . . . Cave-ins Triggered . | . . . Exploration Rate (%) 21 | 4 35 25 Regions Visited 2 Branch Regions . Pre-discovered Areas . | . . . Known Exits Taken . | . . . Unknown Exits Taken 2 | 1 1 . Scrap Searched . | . . . Spaces Dug . | . . . Terrain Destroyed 240 | . 86 154 Melee . | . . . Projectile . | . . . AOE 240 | . 86 154 Terrain Rammed . | . . . Walls Destroyed . | . . . Machines Disabled . | . . . Actions | -11 -10 -9 --------- Run | Scr Mat Mat Total 616 | 94 261 261 Wait 15 | . . 15 Move 471 | 72 235 164 Hop . | . . . Pick Up 18 | 6 4 8 Fast Attach 8 | 4 2 2 Attach 13 | 2 1 10 Detach . | . . . Swap 6 | . 4 2 Drop 7 | . 1 6 Fire 66 | 8 14 44 Melee 10 | . . 10 Ram . | . . . Kick 2 | 2 . . Crush . | . . . Escape Stasis . | . . . Rewire . | . . . Trap . | . . . Miscellaneous . | . . . Route ------- -11/Scrapyard -10/Materials -9/Materials (discovered 2 exits: [*Mat] / Min) History --------- Turn | Location | Event 39 | -11/Scrapyard | Discovered new exit (range 15) 125 | -11/Scrapyard | Entered Materials 303 | -10/Materials | Build established: Mutant 357 | -10/Materials | Repaired Lgt. Ion Engine 383 | -10/Materials | Repaired Aluminum Leg? 446 | -10/Materials | Discovered new exit (range 10) 462 | -10/Materials | Entered another Materials area 462 | -9/Materials | Evolved 2 slots: Power x1, Weapon x1 520 | -9/Materials | Identified exit to Mines 700 | -9/Materials | Lost 3 parts (1u2w) 777 | -9/Materials | Discovered new exit (range 15) 821 | -9/Materials | Core integrity fell below 50% 848 | -9/Materials | Core integrity fell below 20% 866 | -9/Materials | Destroyed by G-34 Mercenary with Small Laser Last Messages --------------- 00860_ Connecting with Terminal... >>Query(Repair Station) Self-contained repair facility capable of restoring the integrity of damaged components. Serious internal issues such as prototype malfunction and component deterioration are beyond the scope of repair. Advanced repair stations can complete complex tasks more quickly. 00860_ ALERT: Suspicious activity at Terminal M001. Dispatching Investigation squad. 00860_ U-05 Engineer lays Concrete. 00861_ K-01 Serf collects debris. 00861_ U-05 Engineer lays Concrete. 00861_ K-01 Serf destroyed. 00861_ G-34 Mercenary destroyed. 00861_ U-05 Engineer lays Concrete. 00864_ Lgt. Assault Rifle destroyed. 00864_ U-05 Engineer lays Concrete. 00864_ K-01 Serf collects debris. 00865_ U-05 Engineer lays Concrete. 00866_ System corrupted: Grenade Launcher rejected. 00866_ Knocked back. Map ----- +----------------------------------------------------+ | | | | | | | | | | | | | ?????????????????????????????????????????????????? | | ?????????????????????????????????????????????????? | | ?????????????????????????????????????????????????? | | ?????????????????????????????????????????????????? | | ?????????????????????????????????????????????????? | | ?????????????????????????????????????????????????? | | ?????????????????????????????????????????????????? | | ?????????????????????????????????????????????????? | | ?????????????????????????????????????????????????? | | ?????????????????????????????????????????????????? | | ?????????????????????????????????????????????????? | | ????????????????????###??????????????????????????? | | ????????????????????# ?????????????????????????? | | ????????????????????# < ?????????????????????????? | | ????????????????????# ?????????????????????????? | | ??????????????????"?# ##########+##????????????? | | ????????????????"""?# g r ?????????????? | | ??????????????? """ + g ?????????????? | | ???????????????? # ""g """ """?????????????? | | ??????????????? """ # ""@ """ """ #??????????? | | ??????????????? """ # "T] """ """ #??????????? | | ???????????# """ ""b #??????????? | | ???????????? ""%= +??????????? | | ???????????????##### g #??????????? | | ???????????????????# #??????????? | | ??????????????####### % #??????????? | | ?????????????# """ #k = #######+##??????????? | | ?????????????# """ # #?????????????????? | | ?????????????# """ # * #?????????????????? | | ?????????????# + uu/ "T" #?????????????????? | | ?????????????# # u # """ #?????????????????? | | ?????????????# #######?????????????????? | | ??????????????###### #?????????????????????? | | ??????###+########## % #?????????????????????? | | ????? * #?????????????????????? | | ????? ##????????????????????? | | ????? ! ! ###??????????????????? | | ???????#############= #??????????????????? | | ????????????????# ###+## "" ##?????????????????? | | ???????????????## " #?????????????????? | | ???????????????# #?????????????????? | | ???????????????# " #?????????????????? | | ???????????????## = #?????????????????? | | ????????????????#/[] " #?????????????????? | +----------------------------------------------------+ Best States ------------- Heat Dissipation 28 Energy Generation 15 Energy Capacity 275 Matter Stores 300 Matter Capacity 300 Sight Range 16 Terrain Scan Density 10 ECM Strength 2 Weapon Shielding 33 Evasion (%) 40 Melee Accuracy 5 Item Schematics ----------------- Flail | -9/Materials | Scanalyzed Lgt. Assault Rifle | -9/Materials | Scanalyzed Robot Schematics ------------------ None Fabricated ------------ Nothing Alien Tech Used ----------------- None Achievements -------------- None Challenges ------------ None Game ------ Seed ChargeSmartbombReactor Manual? 0 Play Time 00:24:08 Cumulative 29.3 hours Start 2022.02.06 @ 23:19:08 End 2022.02.06 @ 23:43:59 Sessions 1 Manual Loads 0 Difficulty Rogue Special Mode None Game No. 42 Rogue 42 Adventurer 0 Explorer 0 Win Type - Total 0 Types 0/0/0/0/0/0/0/0/0 Lore% 5 Gallery% 21 Achievement% 16 Wizard Run 0 Options --------- ASCII 0 Keyboard 0 Movement Mouse Keybinds 0 Fullscreen 1 Font 18/SmallcapsGlow Map View 76x50 Tactical HUD 1 Map Filters NONE Filters NONE Steam 1 RUN: 3eec35fa-31b4-4cda-b45a-512f8a9167f7